bitfinex/quotes_ETHUSD_20241013
["timestamp","ask_amount","ask_price","bid_price","bid_amount"]
[1728782653444,4.04173,2474.2,2473.7,0.54368212]
[1728782653649,4.04173,2474.2,2473.7,0.05849011]
[1728782654510,4.04202,2474.1,2473.7,0.05849011]
[1728782654948,4.04204,2474.0,2473.7,0.05849011]
[1728782656525,4.0422,2473.9,2473.7,0.05849011]
[1728782656727,6.06850395,2473.8,2473.3,0.7506]
[1728782656941,4.04236,2473.8,2473.3,0.7506]
[1728782657147,4.04266,2473.7,2473.4,0.05866909]
[1728782659836,4.04193,2474.1,2473.5,0.7506]
[1728782660046,3.0,2474.0,2473.5,0.7506]
[1728782660210,4.04223,2473.9,2473.6,0.05844412]
[1728782661457,4.04252,2473.7,2473.6,0.05844412]
[1728782661808,4.04252,2473.7,2473.2,0.7506]
[1728782662009,4.04271,2473.6,2473.2,0.7506]
[1728782662934,8.08554,2473.6,2473.2,0.7506]
[1728782663130,4.04312,2473.4,2473.0,7.26258134]
[1728782663328,4.04351,2473.1,2472.6,0.7691]
[1728782663659,8.08715,2473.1,2472.6,0.7691]
[1728782664212,8.08714,2473.1,2472.6,0.7691]
[1728782664413,4.04351,2473.1,2472.6,0.7691]
[1728782664654,8.08715,2473.1,2472.6,0.7691]
[1728782665072,8.08717,2473.1,2472.6,0.7691]
[1728782665219,4.04351,2473.1,2472.6,0.7691]
[1728782666123,8.08712,2473.1,2472.6,0.7691]
[1728782666329,3.81,2473.0,2472.4,4.81374]
[1728782666863,7.85367,2473.0,2472.4,4.81374]
[1728782667226,3.81,2473.0,2472.5,4.04448]
[1728782667521,3.0,2473.0,2472.6,4.10374475]
[1728782667717,3.0,2473.2,2472.7,4.04413]
[1728782667958,3.0,2473.2,2472.8,0.05946533]
[1728782668126,3.0,2473.2,2472.8,0.7691]
[1728782668334,4.85291,2473.5,2472.9,0.05936358]
[1728782668559,3.0,2473.4,2472.9,0.05936358]
[1728782668723,7.04312,2473.4,2472.9,0.05936358]
[1728782669075,3.0,2473.4,2472.9,4.10315358]
[1728782669352,7.04303,2473.4,2472.9,0.05936358]
[1728782669942,3.0,2473.4,2472.9,4.10317358]
[1728782670256,4.04319,2473.3,2472.9,0.05936358]
[1728782670630,7.11169395,2473.3,2472.9,0.05936358]
[1728782670835,0.81,2473.2,2472.9,0.05936358]
[1728782671065,0.81,2473.2,2472.5,0.7691]
[1728782671066,4.04393,2472.9,2472.5,0.7691]
[1728782671358,4.0438,2473.0,2472.5,0.7691]
[1728782671562,7.04383,2472.9,2472.5,0.7691]
[1728782673247,3.0,2472.9,2472.5,0.7691]
[1728782673425,4.04402,2472.8,2472.5,0.7691]
[1728782675634,4.04402,2472.8,2472.3,4.04472]
[1728782676247,4.04418,2472.7,2472.2,0.8293]
[1728782676453,4.04442,2472.6,2472.2,0.8293]
[1728782676656,4.04442,2472.6,2472.0,12.13716134]
[1728782676962,4.04442,2472.6,2472.0,7.70683413]
[1728782677156,4.04442,2472.6,2472.0,4.87458]
[1728782677664,8.91627,2472.7,2472.1,4.04511]
[1728782677956,4.04444,2472.6,2472.0,0.8293]
[1728782678163,4.04444,2472.6,2472.0,4.87458]
[1728782678924,4.04467,2472.4,2472.0,0.8293]
[1728782679369,4.04486,2472.3,2472.0,0.8293]
[1728782679928,4.04486,2472.3,2472.0,0.7793]
[1728782680234,4.04486,2472.3,2471.7,4.0457]
[1728782680440,8.08979,2472.3,2471.7,4.0457]
[1728782680650,4.04486,2472.3,2471.7,4.0457]
[1728782681299,4.04486,2472.3,2471.7,5.17652813]
[1728782681591,4.87266,2472.3,2471.8,4.04561]
[1728782681960,4.87266,2472.3,2471.7,9.22220813]
[1728782682303,3.0,2472.5,2472.0,4.04521]
[1728782682593,3.0,2472.5,2472.1,0.06031893]
[1728782682895,3.0,2472.5,2472.1,0.87331893]
[1728782683194,4.87215,2472.6,2472.1,4.91845893]
[1728782683195,3.0,2472.6,2472.1,4.91845893]
[1728782684083,7.04435,2472.6,2472.1,0.87331893]
[1728782688544,3.0,2472.6,2472.1,4.91844893]
[1728782689095,3.0,2472.6,2472.1,0.87331893]
[1728782689289,4.0445,2472.5,2472.1,0.87331893]
[1728782690408,3.0,2472.6,2472.1,4.91843893]
[1728782690583,3.0,2472.6,2472.1,5.81879357]
[1728782691291,7.04434,2472.6,2472.1,5.81879357]
[1728782691876,3.0,2472.7,2472.2,0.55]
[1728782692080,4.04358,2473.1,2472.5,4.04446]
[1728782692316,4.04358,2473.1,2472.6,0.05982324]
[1728782692639,4.04371,2473.0,2472.6,0.05982324]
[1728782694344,4.04371,2473.0,2472.3,4.85775]
[1728782694497,4.04371,2473.0,2472.4,4.10465349]
[1728782695121,4.04384,2472.9,2472.4,0.06002349]
[1728782695295,0.7909,2472.8,2472.4,0.06002349]
[1728782695513,4.8349,2472.8,2472.4,0.06002349]
[1728782696358,4.04425,2472.7,2472.4,0.06002349]
[1728782696643,4.04425,2472.7,2472.1,7.26258134]
[1728782696644,4.04448,2472.5,2472.1,7.26258134]
[1728782696844,4.04488,2472.3,2472.0,0.813]
[1728782697699,4.04488,2472.3,2472.1,0.06029402]
[1728782698330,4.04498,2472.2,2472.1,0.06029402]
[1728782698555,4.04498,2472.2,2471.8,0.813]
[1728782698745,4.0451,2472.2,2471.9,0.06051593]
[1728782698902,0.7909,2472.4,2471.9,0.06051593]
[1728782699103,4.0453,2472.0,2471.9,0.06051593]
[1728782699330,4.0453,2472.0,2471.5,4.85906]
[1728782699645,4.0453,2472.0,2471.6,0.06085466]
[1728782699875,4.04552,2471.9,2471.6,0.06085466]
[1728782700521,4.8362,2472.0,2471.3,12.12194134]
[1728782700832,4.04548,2471.9,2471.4,0.06108828]
[1728782701335,4.04574,2471.8,2471.4,0.06108828]
[1728782701535,4.04612,2471.5,2471.4,0.06108828]
[1728782701738,7.83702,2471.5,2471.0,0.813]
[1728782701914,7.83702,2471.5,2471.1,0.06148362]
[1728782702409,3.7909,2471.5,2471.1,0.06148362]
[1728782702610,3.0,2471.5,2471.1,0.06148362]
[1728782702828,3.0,2471.5,2471.1,4.10823362]
[1728782703108,0.7909,2471.7,2471.2,0.55]
[1728782703109,4.04582,2471.7,2471.2,0.55]
[1728782703587,4.04582,2471.7,2471.3,0.06134962]
[1728782704107,3.0,2471.7,2471.3,0.06134962]
[1728782706615,3.0,2471.7,2471.3,4.10778962]
[1728782708258,3.7738,2471.9,2471.3,4.10778962]
[1728782708566,3.7738,2471.9,2471.4,4.84305]
[1728782708762,3.7738,2471.9,2471.5,0.0611492]
[1728782712361,0.7738,2472.2,2471.8,0.7968]
[1728782712861,0.7738,2472.2,2471.9,0.06075845]
[1728782713420,3.0,2472.3,2471.9,0.06075845]
[1728782713826,0.7738,2472.5,2471.9,0.06075845]
[1728782714065,4.8183,2472.5,2471.9,0.55106429]
[1728782714225,4.8183,2472.5,2471.9,0.06075845]
[1728782714564,4.8183,2472.5,2471.9,4.10612845]
[1728782714879,4.0445,2472.5,2471.9,4.10612845]
[1728782715376,3.0,2472.4,2471.9,4.10612845]
[1728782717479,3.0,2472.5,2472.0,4.5953]
[1728782717782,3.0,2472.5,2472.1,0.06050995]
[1728782718501,7.0445,2472.5,2472.1,0.06050995]
[1728782719438,3.0,2472.5,2472.3,0.7968]
[1728782719843,3.7738,2472.7,2472.4,0.06016634]
[1728782720378,0.7738,2472.9,2472.4,0.06016634]
[1728782720567,4.81764,2472.9,2472.5,0.55]
[1728782720773,0.7738,2472.9,2472.6,0.05996278]
[1728782721299,4.81728,2473.2,2472.7,0.7968]
[1728782721458,4.04348,2473.2,2472.7,4.84089]
[1728782721669,4.04348,2473.2,2472.8,0.0577886]
[1728782721980,4.8169,2473.4,2472.7,4.84094]
[1728782722174,4.04287,2473.5,2472.9,4.8406]
[1728782722356,4.04287,2473.5,2473.0,0.60758842]
[1728782724571,4.04279,2473.6,2473.0,0.60758842]
[1728782724776,4.04311,2473.4,2473.0,0.60758842]
[1728782726189,3.0,2473.5,2473.0,0.60758842]
[1728782726393,3.0,2473.5,2473.0,8.69477842]
[1728782726560,3.0,2473.5,2473.0,4.65115842]
[1728782729468,3.0,2473.5,2473.0,5.60034626]
[1728782729665,3.0,2473.5,2473.0,9.64391626]
[1728782729872,3.0,2473.5,2473.0,5.60034626]
[1728782736506,7.04288,2473.5,2473.0,0.60758842]
[1728782736707,4.04301,2473.4,2473.0,0.60758842]
[1728782737910,3.0,2473.5,2473.0,4.65123842]
[1728782738506,7.04286,2473.5,2473.0,4.65123842]
[1728782740408,3.0,2473.5,2473.0,4.65123842]
[1728782740565,7.04295,2473.5,2473.0,4.65123842]
[1728782741370,3.0,2473.5,2473.0,4.65123842]
[1728782742212,7.04287,2473.5,2473.0,4.65123842]
[1728782743260,7.04286,2473.5,2473.0,4.65123842]
[1728782744013,3.0,2473.5,2473.0,4.65123842]
[1728782744168,3.0,2473.5,2473.1,0.7961]
[1728782744581,3.0,2473.5,2473.2,0.0569483]
[1728782751071,4.04243,2473.8,2473.2,0.0569483]
[1728782751072,1.32143863,2473.3,2473.2,0.0569483]
[1728782752702,5.36454863,2473.4,2473.2,0.0569483]
[1728782755310,9.40765863,2473.4,2473.2,0.0569483]
[1728782755670,5.36454863,2473.4,2473.2,0.0569483]
[1728782755866,3.0,2473.5,2473.2,0.0569483]
[1728782759712,7.04255,2473.7,2473.2,0.0569483]
[1728782760480,4.04271,2473.6,2473.2,0.0569483]
[1728782760718,3.0,2473.5,2473.2,0.0569483]
[1728782761914,4.04304,2473.4,2473.2,0.0569483]
[1728782762478,4.04318,2473.3,2473.2,0.0569483]
[1728782762916,4.04318,2473.3,2473.0,0.55]
[1728782763124,4.04318,2473.3,2473.2,0.05693337]
[1728782763422,4.04318,2473.3,2473.1,0.05703344]
[1728782763583,4.04304,2473.4,2473.2,0.05693337]
[1728782763786,4.04318,2473.3,2473.2,0.05693337]
[1728782764002,4.04339,2473.2,2472.9,0.7961]
[1728782765129,3.0673269,2473.2,2472.7,0.7639]
[1728782765420,4.04385,2472.9,2472.4,0.7639]
[1728782765618,4.04401,2472.8,2472.4,0.7639]
[1728782765824,4.04401,2472.8,2472.3,7.26258134]
[1728782765825,4.04425,2472.7,2472.3,7.26258134]
[1728782766008,0.8326,2472.7,2472.2,0.7639]
[1728782766596,4.87681,2472.7,2472.2,0.7639]
[1728782767617,4.04421,2472.7,2472.2,0.7639]
[1728782767818,3.8326,2472.9,2472.3,4.62106545]
[1728782768143,7.04384,2472.9,2472.3,8.6395]
[1728782768294,3.0,2472.9,2472.3,8.6395]
[1728782768500,3.0,2473.0,2472.5,4.59436]
[1728782768718,3.0,2473.1,2472.7,0.55]
[1728782769835,7.04352,2473.1,2472.7,0.55]
[1728782770324,3.0,2473.1,2472.7,0.55]
[1728782770707,3.0,2473.1,2472.7,4.59413]
[1728782772222,7.0431,2473.4,2472.9,4.04372]
[1728782772627,7.0431,2473.4,2472.9,4.59372]
[1728782772839,7.0431,2473.4,2473.0,0.05724967]
[1728782773704,3.0,2473.3,2473.0,0.05724967]
[1728782774013,4.0431,2473.4,2473.0,0.59873664]
[1728782775325,4.0431,2473.4,2473.1,0.7639]
[1728782775648,4.0431,2473.4,2473.2,0.05701633]
[1728782777610,7.04285,2473.5,2473.2,0.05701633]
[1728782780190,4.04303,2473.4,2473.2,0.05701633]
[1728782782691,5.36465764,2473.4,2473.2,0.05701633]
[1728782785988,1.32162764,2473.4,2473.2,0.05701633]
[1728782786191,4.32162764,2473.5,2473.2,0.05701633]
[1728782786437,1.32162764,2473.4,2473.2,0.05701633]
[1728782786594,4.32162764,2473.5,2473.2,0.05701633]
[1728782786941,3.0,2473.7,2473.3,4.04314]
[1728782787124,3.0,2473.7,2473.4,0.7975]
[1728782787302,4.32162764,2473.7,2473.4,0.7975]
[1728782787827,4.32162764,2473.7,2473.5,0.05666308]
[1728782788019,3.0,2473.7,2473.5,0.05666308]
[1728782788335,6.19151764,2473.6,2473.5,0.05666308]
[1728782788518,10.93890256,2473.6,2473.5,0.05666308]
[1728782788727,4.04366,2473.1,2472.8,0.7975]
[1728782789096,4.04366,2473.1,2472.9,0.05535625]
[1728782789434,4.04366,2473.1,2473.0,0.05525782]
[1728782789800,4.04366,2473.1,2472.6,0.7975]
[1728782790024,4.04369,2473.0,2472.6,0.7975]
[1728782790333,8.08752,2473.0,2472.6,0.7975]
[1728782790637,8.08746,2473.0,2472.6,0.7975]
[1728782790805,4.04394,2472.9,2472.6,0.7975]
[1728782791694,4.04369,2473.0,2472.6,0.7975]
[1728782793728,3.0,2473.1,2472.7,0.55]
[1728782795098,3.0,2473.1,2472.8,0.7975]
[1728782796346,4.8703,2473.4,2472.8,0.7975]
[1728782796347,7.04319,2473.3,2472.8,0.7975]
[1728782797140,3.0,2473.3,2472.8,0.7975]
[1728782797300,3.0,2473.3,2472.8,5.32562]
[1728782797504,3.0,2473.3,2472.9,4.59382]
[1728782798447,4.0431,2473.4,2473.0,0.7975]
[1728782798647,0.8272,2473.7,2473.2,4.04332]
[1728782798815,4.04284,2473.6,2473.1,0.55]
[1728782799037,4.04284,2473.6,2473.2,0.539107]
[1728782799922,4.04226,2473.9,2473.5,0.7975]
[1728782800232,4.04237,2473.8,2473.5,0.7975]
[1728782800736,8.08424,2474.0,2473.5,0.7975]
[1728782800931,8.08424,2474.0,2473.5,1.28155]
[1728782801134,4.0421,2474.0,2473.5,0.7975]
[1728782801332,4.04227,2473.9,2473.5,0.7975]
[1728782801568,4.0421,2474.0,2473.5,0.7975]
[1728782802156,3.0,2473.9,2473.5,0.7975]
[1728782802492,3.0,2473.9,2473.6,0.05469052]
[1728782803599,3.0,2473.9,2473.6,0.54420057]
[1728782805373,3.0,2474.1,2473.6,0.54420057]
[1728782805587,3.0,2474.1,2473.6,4.58687057]
[1728782806198,7.04194,2474.1,2473.6,0.54420057]
[1728782806762,4.46480039,2474.2,2473.7,0.8087]
[1728782806763,4.04173,2474.2,2473.7,0.8087]
[1728782807184,4.04173,2474.2,2473.8,0.05443268]
[1728782807503,4.04173,2474.2,2473.7,4.85119]
[1728782807684,4.04173,2474.2,2473.8,0.05443268]
[1728782807891,4.04173,2474.2,2473.7,4.85119]
[1728782808208,3.0,2474.3,2473.8,0.94380768]
[1728782808366,7.04157,2474.3,2473.8,0.94380768]
[1728782808561,4.04171,2474.2,2473.8,0.94380768]
[1728782810026,4.04171,2474.2,2473.9,0.8087]
[1728782810381,4.04147,2474.4,2474.0,0.05404112]
[1728782810817,4.04147,2474.4,2474.0,0.94876323]
[1728782812321,8.08296,2474.4,2474.0,0.94876323]
[1728782812882,4.04147,2474.4,2474.0,0.94876323]
[1728782814318,3.0,2474.5,2474.0,0.94876323]
[1728782814483,7.04126,2474.5,2474.0,0.94876323]
[1728782814691,4.04139,2474.4,2474.0,0.94876323]
[1728782816177,8.08288,2474.4,2474.0,0.94876323]
[1728782816382,4.04139,2474.4,2474.0,0.05404112]
[1728782816613,8.08286,2474.4,2474.0,0.05404112]
[1728782816837,4.04139,2474.4,2474.0,0.05404112]
[1728782817228,8.08288,2474.4,2474.0,0.05404112]
[1728782817629,4.04139,2474.4,2474.0,0.05404112]
[1728782818832,3.0,2474.5,2474.0,0.05404112]
[1728782819031,4.04149,2474.4,2474.0,0.05404112]
[1728782820454,1.32070106,2474.2,2474.0,0.05404112]
[1728782821265,1.32070106,2474.3,2474.0,0.05404112]
[1728782821621,1.32070106,2474.2,2474.0,0.05404112]
[1728782822776,1.32070106,2474.1,2474.0,0.05404112]
[1728782822928,5.36257106,2474.1,2474.0,0.05404112]
[1728782823128,5.36257106,2474.1,2473.6,0.7763]
[1728782823441,1.32070106,2473.9,2473.7,0.05428834]
[1728782823851,8.87621,2474.2,2473.7,0.05428834]
[1728782823852,1.32070106,2474.0,2473.7,0.05428834]
[1728782825046,7.04156,2474.3,2473.7,1.26787331]
[1728782825233,1.32070106,2474.5,2474.1,0.7763]
[1728782825428,1.32070106,2474.4,2474.1,0.7763]
[1728782825742,1.32070106,2474.4,2474.2,0.05382794]
[1728782826066,3.0,2474.5,2474.2,0.05382794]
[1728782826227,0.7927,2474.8,2474.2,0.05382794]
[1728782826228,4.32070106,2474.6,2474.2,0.05382794]
[1728782826428,3.0,2474.6,2474.2,0.05382794]
[1728782827642,3.0,2474.5,2474.2,0.05382794]
[1728782830435,3.0,2474.5,2474.2,0.54103173]
[1728782831174,7.04124,2474.5,2474.2,0.54103173]
[1728782831481,7.04124,2474.5,2474.2,0.05382794]
[1728782831972,3.0,2474.5,2474.2,0.05382794]
[1728782833341,7.04122,2474.5,2474.2,0.05382794]
[1728782837374,3.0,2474.5,2474.2,0.05382794]
[1728782838192,7.04123,2474.5,2474.2,0.05382794]
[1728782839765,4.04154,2474.3,2474.2,0.05382794]
[1728782840173,7.89911465,2474.4,2473.7,0.7763]
[1728782840174,4.0422,2473.9,2473.7,0.7763]
[1728782840490,4.04206,2474.0,2473.7,0.7763]
[1728782840978,4.04189,2474.1,2473.7,0.7763]
[1728782841483,8.08389,2474.1,2473.7,0.7763]
[1728782842609,4.04189,2474.1,2473.7,0.7763]
[1728782843232,8.08386,2474.1,2473.7,0.7763]
[1728782844231,4.04204,2474.0,2473.7,0.7763]
[1728782844588,8.08386,2474.1,2473.7,0.7763]
[1728782844789,4.04189,2474.1,2473.7,0.7763]
[1728782845087,8.08385,2474.1,2473.7,0.7763]
[1728782845727,4.04189,2474.1,2473.7,0.7763]
[1728782846536,4.04165,2474.3,2473.8,0.55]
[1728782846829,4.04165,2474.3,2473.8,0.7593]
[1728782847125,4.04181,2474.2,2473.8,0.7593]
[1728782847337,4.04181,2474.2,2473.9,0.05232578]
[1728782847814,8.08334,2474.3,2473.9,0.05232578]
[1728782847987,4.04174,2474.2,2473.9,0.05232578]
[1728782848195,8.08333,2474.3,2473.9,0.05232578]
[1728782848531,9.40401452,2474.3,2473.9,0.05232578]
[1728782848887,9.35401452,2474.3,2473.9,0.05232578]
[1728782849192,5.31233452,2474.3,2473.9,0.05232578]
[1728782849623,9.35402452,2474.3,2473.9,0.05232578]
[1728782850294,5.31233452,2474.3,2473.9,0.05232578]
[1728782850837,9.35403452,2474.3,2473.9,0.05232578]
[1728782851134,5.36248452,2474.2,2473.9,0.05232578]
[1728782851533,1.32068452,2474.0,2473.9,0.05232578]
[1728782851698,4.04236,2473.8,2473.4,8.02188134]
[1728782851904,1.32068452,2473.5,2473.4,8.02188134]
[1728782852237,4.04285,2473.5,2473.4,7.26258134]
[1728782852450,5.36353452,2473.5,2473.4,7.26258134]
[1728782853201,4.04285,2473.5,2473.4,7.26258134]
[1728782853436,1.32068452,2473.5,2473.2,0.7593]
[1728782853744,4.04304,2473.4,2473.2,0.7593]
[1728782854101,4.04304,2473.4,2473.3,0.05293082]
[1728782854296,4.04285,2473.5,2473.2,0.7593]
[1728782854535,4.04285,2473.5,2473.3,0.05293082]
[1728782854838,4.0427,2473.6,2473.2,0.7593]
[1728782855044,4.0427,2473.6,2473.4,0.05283076]
[1728782855343,4.04255,2473.7,2473.5,0.05273072]
[1728782855542,4.04241,2473.8,2473.3,0.7593]
[1728782855846,4.04241,2473.8,2473.6,0.05263069]
[1728782856139,7.04209,2474.0,2473.7,0.05253066]
[1728782856313,3.0,2473.9,2473.3,8.8455]
[1728782856513,7.0422,2473.9,2473.8,0.05243064]
[1728782856715,7.0422,2473.9,2473.4,0.88455]
[1728782857013,7.0422,2473.9,2473.8,0.05243064]
[1728782857203,7.0422,2473.9,2473.4,0.88455]
[1728782857398,7.0422,2473.9,2473.8,0.05243064]
[1728782857646,4.04239,2473.8,2473.4,0.88455]
[1728782857828,4.04239,2473.8,2473.5,0.568692]
[1728782859726,8.08485,2473.8,2473.5,0.568692]
[1728782860215,4.04239,2473.8,2473.5,0.568692]
[1728782860817,8.08485,2473.8,2473.5,0.568692]
[1728782861231,8.08485,2473.8,2473.3,0.7593]
[1728782861443,4.04239,2473.8,2473.3,0.7593]
[1728782861710,3.0,2473.9,2473.4,0.05283076]
[1728782861856,7.0422,2473.9,2473.5,0.7593]
[1728782862255,7.0422,2473.9,2473.6,0.05263069]
[1728782862967,4.04221,2473.9,2473.6,0.05263069]
[1728782864014,4.04212,2474.0,2473.6,0.05263069]
[1728782864258,4.04212,2474.0,2473.6,0.53812376]
[1728782867341,8.08427,2474.0,2473.6,0.53812376]
[1728782867540,4.04212,2474.0,2473.6,0.53812376]
[1728782867769,8.08426,2474.0,2473.6,0.53812376]
[1728782868285,4.04212,2474.0,2473.6,0.53812376]
[1728782869745,4.04212,2474.0,2473.7,0.53402438]
[1728782869961,4.04212,2474.0,2473.7,0.58659117]
[1728782870743,3.0,2474.1,2473.7,0.58659117]
[1728782871485,4.04204,2474.0,2473.7,0.58659117]
[1728782871782,4.04204,2474.0,2473.7,0.05256679]
[1728782871982,4.04204,2474.0,2473.5,0.7593]
[1728782872190,4.04204,2474.0,2473.8,0.05249307]
[1728782872488,4.04204,2474.0,2473.5,0.7593]
[1728782872645,4.04204,2474.0,2473.9,0.05239306]
[1728782872845,4.04204,2474.0,2473.5,0.7593]
[1728782873159,4.04204,2474.0,2473.6,0.53292311]
[1728782876578,5.36294134,2474.0,2473.6,0.53292311]
[1728782876783,4.04204,2474.0,2473.6,0.53292311]
[1728782878989,4.04204,2474.0,2473.6,0.05269311]
[1728782878990,4.04238,2473.8,2473.6,0.05269311]
[1728782880600,9.40522134,2474.0,2473.6,0.05269311]
[1728782880809,4.04223,2473.9,2473.6,0.05269311]
[1728782880960,4.04238,2473.8,2473.6,0.05269311]
[1728782881160,1.32090134,2473.9,2473.6,0.05269311]
[1728782881561,5.36312134,2473.9,2473.6,0.05269311]
[1728782881795,4.04222,2473.9,2473.6,0.05269311]
[1728782882401,5.36312134,2473.9,2473.6,0.05269311]
[1728782882698,4.04222,2473.9,2473.6,0.05269311]
[1728782882901,8.08451,2473.9,2473.6,0.05269311]
[1728782883808,4.04222,2473.9,2473.6,0.05269311]
[1728782883958,8.08451,2473.9,2473.6,0.05269311]
[1728782884297,4.04222,2473.9,2473.6,0.05269311]
[1728782884484,8.08452,2473.9,2473.6,0.05269311]
[1728782885003,4.04222,2473.9,2473.6,0.05269311]
[1728782885969,8.08452,2473.9,2473.6,0.05269311]
[1728782886173,4.04222,2473.9,2473.6,0.05269311]
[1728782887102,4.04237,2473.8,2473.6,0.05269311]
[1728782887289,4.04222,2473.9,2473.6,0.05269311]
[1728782887290,5.36312134,2473.9,2473.6,0.05269311]
[1728782887471,4.04252,2473.7,2473.6,0.05269311]
[1728782888086,6.15122134,2473.9,2473.6,0.05269311]
[1728782888304,4.04236,2473.8,2473.6,0.05269311]
[1728782889265,4.83032,2473.9,2473.6,0.05269311]
[1728782889464,4.04222,2473.9,2473.6,0.05269311]
[1728782892995,4.83001,2474.1,2473.7,0.7673]
[1728782892996,4.04191,2474.1,2473.7,0.7673]
[1728782893190,4.04191,2474.1,2473.8,0.05250788]
[1728782893389,4.04191,2474.1,2473.7,0.7673]
[1728782893675,5.36281134,2474.1,2473.9,0.05240623]
[1728782894019,7.04191,2474.1,2474.0,0.05230622]
[1728782894384,7.04191,2474.1,2473.7,0.7673]
[1728782894385,3.0,2474.1,2473.7,0.7673]
[1728782894591,7.04171,2474.2,2474.0,0.05229636]
[1728782894830,8.36261134,2474.2,2473.7,4.80981]
[1728782894976,7.04171,2474.2,2474.1,0.05219637]
[1728782895176,7.04171,2474.2,2473.7,0.7673]
[1728782895177,4.04188,2474.1,2473.7,0.7673]
[1728782895412,1.32090134,2474.0,2473.7,0.7673]
[1728782895829,1.32090134,2474.0,2473.4,0.84889556]
[1728782895830,1.32090134,2473.9,2473.4,0.84889556]
[1728782896149,5.36321134,2473.9,2473.5,0.7673]
[1728782896367,4.04231,2473.9,2473.5,0.7673]
[1728782896499,6.15107134,2474.0,2473.5,0.7673]
[1728782896826,5.36328134,2473.8,2473.5,0.7673]
[1728782897015,9.40573134,2473.8,2473.5,0.7673]
[1728782897211,9.40577134,2473.8,2473.3,0.7673]
[1728782897424,5.36328134,2473.8,2473.3,0.7673]
[1728782897742,1.32090134,2473.7,2473.3,1.59266902]
[1728782897909,1.32090134,2473.6,2473.3,0.7673]
[1728782898111,1.32090134,2473.5,2473.3,0.7673]
[1728782898412,5.36359134,2473.6,2473.3,0.7673]
[1728782898812,1.32090134,2473.6,2473.3,0.7673]
[1728782899716,6.15156134,2473.7,2473.3,0.7673]
[1728782900346,4.83066,2473.7,2473.3,0.7673]
[1728782900503,3.0,2473.9,2473.4,1.32090134]
[1728782900703,4.32090134,2473.9,2473.3,4.81038]
[1728782900943,1.32090134,2473.8,2473.4,1.10234169]
[1728782901251,4.32090134,2473.9,2473.4,1.10234169]
[1728782901427,4.04238,2473.8,2473.4,1.10234169]
[1728782902033,4.32090134,2473.9,2473.4,5.14533169]
[1728782902239,6.15110134,2474.0,2473.5,0.7673]
[1728782902421,10.19325134,2474.0,2473.6,0.7233533]
[1728782902600,1.32090134,2474.0,2473.5,0.7673]
[1728782902950,1.32090134,2474.0,2473.5,4.81005]
[1728782903108,8.36289134,2474.1,2473.5,4.81005]
[1728782903451,1.32090134,2474.0,2473.6,4.04267]
[1728782903609,8.36289134,2474.1,2473.6,4.04267]
[1728782903808,8.36289134,2474.1,2473.6,5.25517086]
[1728782904037,1.32090134,2474.0,2473.6,5.25517086]
[1728782904704,8.36289134,2474.1,2473.6,5.25517086]
[1728782906407,4.32090134,2474.1,2473.6,5.25517086]
[1728782907513,8.36279134,2474.1,2473.6,5.25517086]
[1728782907731,1.32090134,2474.0,2473.7,0.65489444]
[1728782908255,1.32090134,2474.0,2473.7,0.05264735]
[1728782908546,1.32090134,2473.9,2473.7,0.05264735]
[1728782909848,5.36294134,2474.0,2473.7,0.05264735]
[1728782910214,5.36294134,2474.0,2473.5,4.81014]
[1728782910559,1.32090134,2473.9,2473.8,0.05252267]
[1728782910708,1.32090134,2473.9,2473.5,0.7673]
[1728782910909,1.32090134,2473.9,2473.8,0.05252267]
[1728782911147,1.32090134,2473.9,2473.5,4.81015]
[1728782911351,1.32090134,2473.9,2473.8,0.05252432]
[1728782911546,1.32090134,2473.9,2473.5,0.7673]
[1728782912046,1.32090134,2473.9,2473.6,0.05272436]
[1728782913526,1.32090134,2473.9,2473.6,0.9432968]
[1728782914953,5.36294134,2474.0,2473.6,0.9432968]
[1728782915257,1.32090134,2474.0,2473.6,0.9432968]
[1728782916013,5.36313134,2473.9,2473.6,0.9432968]
[1728782916220,1.32090134,2473.8,2473.6,0.05272436]
[1728782916554,5.36342134,2473.7,2473.6,0.05272436]
[1728782916953,4.04279,2473.6,2473.2,7.26258134]
[1728782917152,1.32090134,2473.5,2473.2,7.26258134]
[1728782917354,1.32090134,2473.5,2473.1,0.7822]
[1728782919281,1.32090134,2473.2,2472.9,1.63109556]
[1728782919595,1.32090134,2473.2,2472.9,0.7822]
[1728782919794,1.32090134,2473.3,2472.9,0.7822]
[1728782919993,1.32090134,2473.2,2472.9,0.7822]
[1728782920298,4.82232,2473.4,2472.9,0.7822]
[1728782920299,1.32090134,2473.3,2472.9,0.7822]
[1728782920495,0.7793,2473.4,2472.9,6.21536327]
[1728782920695,2.10020134,2473.4,2472.9,6.21536327]
[1728782920994,6.14323134,2473.4,2472.9,2.17157327]
[1728782922255,2.10020134,2473.4,2472.9,2.17157327]
[1728782922595,5.36383134,2473.5,2472.9,7.53628461]
[1728782922754,5.36383134,2473.5,2473.0,0.05330497]
[1728782923662,9.40679134,2473.5,2473.0,0.05330497]
[1728782923865,0.7793,2473.6,2473.1,4.04349]
[1728782924157,1.32090134,2473.6,2473.2,4.79501]
[1728782924476,1.32090134,2473.6,2473.2,4.84811483]
[1728782924875,1.32090134,2473.5,2473.2,0.80480483]
[1728782925670,5.36360134,2473.6,2473.2,0.80480483]
[1728782925881,1.32090134,2473.6,2473.2,0.80480483]
[1728782926058,1.32090134,2473.6,2473.2,1.54289964]
[1728782926665,5.36361134,2473.6,2473.2,1.54289964]
[1728782928076,1.32090134,2473.6,2473.2,1.54289964]
[1728782928610,5.36408134,2473.3,2473.2,0.05310483]
[1728782928910,5.36408134,2473.3,2472.8,0.7517]
[1728782929712,5.36408134,2473.3,2472.9,0.05346093]
[1728782930788,4.04318,2473.3,2472.9,0.05346093]
[1728782931115,4.04336,2473.2,2472.9,0.05346093]
[1728782932214,4.04302,2473.4,2472.9,0.67046716]
[1728782932383,4.04302,2473.4,2473.0,0.7517]
[1728782932910,4.04302,2473.4,2473.1,0.05326077]